bitfinex-derivatives/quotes_SOLF0:USTF0_20251119
["timestamp","ask_amount","ask_price","bid_price","bid_amount"]
[1763527859232,3.23565715,138.87,138.85,0.04829109]
[1763527861336,0.04565715,138.87,138.85,3.14829109]
[1763527861524,3.23565715,138.87,138.85,0.04829109]
[1763527862434,9.72125715,138.87,138.85,0.04829109]
[1763527862632,3.19,138.85,138.78,3.1]
[1763527863541,3.08,138.82,138.79,3.27]
[1763527863837,3.13367581,138.82,138.79,3.32401037]
[1763527865441,9.62167581,138.82,138.79,0.05401037]
[1763527865742,3.08,138.81,138.79,0.05401037]
[1763527867036,9.5685,138.81,138.79,0.05401037]
[1763527867240,3.08,138.8,138.79,0.05401037]
[1763527867434,0.05367581,138.82,138.79,3.32401037]
[1763527867638,0.05367581,138.82,138.81,3.27]
[1763527868642,0.05367581,138.82,138.79,3.32401037]
[1763527869839,0.05367581,138.82,138.79,9.81321037]
[1763527870544,3.13367581,138.82,138.79,0.05401037]
[1763527870939,0.05367581,138.82,138.79,3.32401037]
[1763527871535,0.05367581,138.82,138.8,6.4887]
[1763527871743,0.05367581,138.82,138.81,3.27]
[1763527873240,3.08,138.87,138.82,9.7578]
[1763527873545,3.08,138.87,138.82,3.27]
[1763527873747,3.08,138.86,138.82,3.27]
[1763527874140,0.04332912,138.85,138.83,0.05011028]
[1763527874944,3.12332912,138.85,138.83,0.05011028]
[1763527876647,3.08,138.84,138.83,0.05011028]
[1763527879051,3.12332912,138.85,138.83,0.05011028]
[1763527879548,0.04332912,138.85,138.83,3.32011028]
[1763527880850,0.04332912,138.85,138.83,0.05011028]
[1763527881645,3.12332912,138.85,138.83,0.05011028]
[1763527882450,9.60982912,138.85,138.83,0.05011028]
[1763527884552,6.487,138.84,138.83,0.05011028]
[1763527884854,0.04332912,138.85,138.83,0.05011028]
[1763527885158,3.07332912,138.85,138.83,0.05011028]
[1763527885853,9.55982912,138.85,138.83,0.05011028]
[1763527886748,9.517,138.84,138.83,0.05011028]
[1763527889556,0.04332912,138.85,138.83,3.10011028]
[1763527889960,3.07332912,138.85,138.83,0.05011028]
[1763527891548,0.04332912,138.85,138.84,3.05]
[1763527892052,0.04332912,138.85,138.83,0.05011028]
[1763527892252,3.07332912,138.85,138.83,0.05011028]
[1763527895764,0.04332912,138.85,138.83,9.65741028]
[1763527895963,0.04332912,138.85,138.84,3.12]
[1763527896361,3.21,138.88,138.85,3.12]
[1763527896550,3.21,138.93,138.85,3.12]
[1763527896757,3.21,138.93,138.86,3.12]
[1763527897266,3.21,138.93,138.89,3.12]
[1763527897971,3.21,138.93,138.89,9.6045]
[1763527898878,3.21,138.93,138.89,3.12]
[1763527901269,3.21,138.93,138.89,9.6045]
[1763527902263,3.21,138.93,138.9,3.12]
[1763527902465,3.21,138.95,138.9,9.6041]
[1763527902669,3.21,138.95,138.91,0.05507188]
[1763527903066,3.21,138.94,138.91,3.17507188]
[1763527903770,3.21,138.94,138.91,0.05507188]
[1763527904873,3.21,138.93,138.91,0.05507188]
[1763527906367,37.9,138.97,138.91,0.05507188]
[1763527906368,6.4818,138.96,138.91,3.17507188]
[1763527906671,100.7735,139.03,138.92,3.12]
[1763527906672,3.21,138.98,138.92,3.12]
[1763527906866,3.21,138.98,138.94,3.17307614]
[1763527907266,3.21,138.98,138.95,9.6018]
[1763527907575,3.21,138.98,138.95,3.12]
[1763527908570,3.21,138.98,138.95,9.6018]
[1763527909076,3.21,138.98,138.95,3.12]
[1763527909977,3.21,139.01,138.96,3.12]
[1763527910275,3.21,139.01,138.97,3.17264139]
[1763527910976,9.6888,139.02,138.98,3.12]
[1763527911174,3.21,139.01,138.98,3.12]
[1763527912376,9.6891,139.01,138.98,3.12]
[1763527914480,3.21,139.01,138.98,3.12]
[1763527915376,3.21,139.03,138.99,3.12]
[1763527915581,3.21,139.03,139.0,0.05538413]
[1763527918382,9.6881,139.03,139.0,0.05538413]
[1763527919284,3.21,139.02,139.0,0.05538413]
[1763527920890,3.21,139.04,139.0,3.17538413]
[1763527921893,3.21,139.04,139.0,9.65478413]
[1763527922192,3.21,139.04,139.01,3.12]
[1763527922991,3.21,139.04,139.01,9.599]
[1763527924595,3.21,139.04,139.02,6.4785]
[1763527924980,3.13,139.07,139.03,3.17]
[1763527925285,3.13,139.07,139.04,3.22230247]
[1763527926896,3.13,139.07,139.04,9.69990247]
[1763527927691,3.13,139.07,139.04,3.22230247]
[1763527928894,3.13,139.07,139.04,0.05230247]
[1763527929495,3.13,139.01,138.97,5.11675089]
[1763527929686,3.13,139.01,138.95,1.94675089]
[1763527929893,3.13,139.0,138.93,1.94675089]
[1763527930100,3.13,138.96,138.91,5.11675089]
[1763527930602,3.17767116,138.95,138.92,0.04861372]
[1763527931397,3.17767116,138.95,138.92,3.21861372]
[1763527931802,3.17767116,138.95,138.92,0.04861372]
[1763527931998,6.4824,138.94,138.92,0.04861372]
[1763527932203,3.13,138.93,138.92,0.04861372]
[1763527932396,9.6124,138.94,138.92,0.04861372]
[1763527933404,3.13,138.93,138.92,0.04861372]
[1763527933921,3.13,138.9,138.83,41.01]
[1763527934206,3.13,138.9,138.82,3.17]
[1763527934402,3.13,138.88,138.82,9.6577]
[1763527934798,0.04583857,138.86,138.84,0.05060242]
[1763527935002,3.17583857,138.86,138.84,0.05060242]
[1763527937511,0.04583857,138.86,138.84,3.22060242]
[1763527937710,0.04583857,138.86,138.84,0.05060242]
[1763527938214,3.17583857,138.86,138.84,0.05060242]
[1763527941616,0.04583857,138.86,138.84,3.22060242]
[1763527943012,3.12583857,138.86,138.84,0.05060242]
[1763527944912,0.04583857,138.86,138.84,3.15060242]
[1763527945115,3.08,138.91,138.84,3.15060242]
[1763527945925,3.08,138.9,138.84,9.63740242]
[1763527946126,0.05177796,138.88,138.85,3.1]
[1763527946323,3.08,138.93,138.86,3.1]
[1763527946622,3.08,138.93,138.87,3.1]
[1763527946826,3.08,138.96,138.9,3.1]
[1763527947520,3.08,138.96,138.92,0.04744228]
[1763527948421,3.08,138.95,138.92,0.04744228]
[1763527949519,3.08,138.93,138.92,0.04744228]
[1763527951632,3.08,138.96,138.92,0.04744228]
[1763527952937,3.08,138.94,138.92,0.04744228]
[1763527954036,3.13,138.93,138.92,0.04744228]
[1763527955541,3.13,138.95,138.92,0.04744228]
[1763527955741,3.13,138.95,138.92,3.06744228]
[1763527955933,138.6689,139.01,138.92,3.06744228]
[1763527956133,3.13,139.0,138.95,0.05473193]
[1763527956642,3.13,139.0,138.95,3.07473193]
[1763527957133,3.13,138.99,138.95,9.55653193]
[1763527957335,3.13,138.99,138.95,3.07473193]
[1763527958338,3.13,138.99,138.95,0.05473193]
[1763527959142,3.13,138.96,138.95,0.05473193]
[1763527959651,3.13,138.96,138.89,3.02]
[1763527959942,9.6117,138.96,138.89,3.02]
[1763527960548,3.18223102,138.94,138.91,0.04782178]
[1763527960751,0.05223102,138.94,138.91,9.55132178]
[1763527962251,0.05223102,138.94,138.92,9.5032]
[1763527964045,0.05223102,138.94,138.93,3.02]
[1763527964243,9.6103,138.99,138.94,3.02]
[1763527964746,3.13,138.99,138.94,3.02]
[1763527965050,3.13,138.99,138.93,6.4824]
[1763527965248,3.13,138.99,138.95,0.04682422]
[1763527966050,3.13,138.97,138.95,0.04682422]
[1763527968648,3.13,139.01,138.96,9.5012]
[1763527968843,3.13,139.01,138.96,3.02]
[1763527969251,3.13,139.0,138.96,9.5013]
[1763527969553,3.13,139.0,138.96,3.02]
[1763527969854,3.13,139.0,138.97,6.4808]
[1763527970454,3.13,139.02,138.98,9.5003]
[1763527970655,3.13,139.02,138.99,0.05282615]
[1763527971851,3.13,139.02,138.99,6.53282615]
[1763527972158,3.13,139.02,138.99,0.05282615]
[1763527972657,3.13,139.02,138.99,6.53272615]
[1763527972858,3.13,139.02,138.99,0.05282615]
[1763527973259,9.6086,139.02,138.99,0.05282615]
[1763527974662,9.6091,139.01,138.99,0.05282615]
[1763527975764,3.13,139.0,138.99,0.05282615]
[1763527975955,3.13,138.98,138.93,3.02]
[1763527976457,3.13,138.96,138.88,109.34965323]
[1763527976662,3.13,138.96,138.9,3.02]
[1763527976861,0.04880418,138.94,138.92,0.04922255]
[1763527977065,0.04880418,138.94,138.92,6.53242255]
[1763527978061,0.04880418,138.94,138.92,9.55242255]
[1763527978754,0.04880418,138.94,138.93,3.02]
[1763527978956,0.04880418,138.94,138.92,9.55242255]
[1763527979158,3.17880418,138.94,138.92,0.04922255]
[1763527981967,3.17880418,138.94,138.84,8.46975323]
[1763527982162,3.13,138.93,138.84,3.02]
[1763527982354,6.4838,138.91,138.85,6.4863]
[1763527982559,9.6138,138.91,138.84,3.02]
[1763527983063,0.05120424,138.89,138.86,3.07174022]
[1763527983263,0.05120424,138.89,138.88,3.02]
[1763527985158,3.13,138.95,138.9,3.18]
[1763527985865,3.13,138.95,138.91,6.4835]
[1763527986061,0.05072335,138.94,138.92,0.04796601]
[1763527986268,3.19072335,138.94,138.92,0.04796601]
[1763527986564,9.67312335,138.94,138.92,0.04796601]
[1763527986865,3.14,138.92,138.83,41.02]
[1763527987672,3.18779175,138.89,138.86,0.047097]
[1763527989471,9.67249175,138.89,138.86,0.047097]
[1763527990673,0.04779175,138.89,138.86,3.227097]
[1763527991369,0.04779175,138.89,138.87,9.6654]
[1763527992262,0.04779175,138.89,138.88,3.18]
[1763527996667,0.04779175,138.89,138.88,9.6651]
[1763528003578,0.04779175,138.89,138.88,6.4851]
[1763528003783,3.07779175,138.89,138.86,0.047097]
[1763528003977,3.07779175,138.89,138.86,3.227097]
[1763528004679,0.04779175,138.89,138.87,3.18]
[1763528004882,0.04779175,138.89,138.88,41.02]
[1763528005883,0.04779175,138.89,138.88,47.5051]
[1763528007286,0.04779175,138.89,138.88,44.3251]
[1763528007683,0.04779175,138.89,138.88,47.5051]
[1763528010892,0.04779175,138.89,138.86,6.532697]
[1763528011100,3.07779175,138.89,138.86,0.047097]
[1763528011794,6.4856,138.87,138.86,0.047097]
[1763528012000,9.5156,138.87,138.86,0.047097]
[1763528013400,3.03,138.87,138.86,0.047097]
[1763528019589,3.12,138.85,138.78,3.18]
[1763528020098,9.6076,138.83,138.78,3.18]
[1763528020500,0.04598438,138.82,138.79,3.2325629]
[1763528022205,0.04598438,138.82,138.8,9.6688]
[1763528022899,0.04598438,138.82,138.81,3.18]
[1763528023704,3.12,138.88,138.82,3.18]
[1763528024605,0.05210246,138.86,138.84,0.05469216]
[1763528024806,3.17210246,138.86,138.84,0.05469216]
[1763528025008,3.12,138.85,138.84,0.05469216]
[1763528026807,9.6065,138.85,138.84,0.05469216]
[1763528027209,3.12,138.85,138.84,0.05469216]
[1763528028008,3.17210246,138.86,138.84,0.05469216]
[1763528030510,9.65830246,138.86,138.84,0.05469216]
[1763528030711,3.12,138.85,138.84,0.05469216]
[1763528031912,9.6065,138.85,138.84,0.05469216]
[1763528042022,3.12,138.83,138.78,1.94909413]
[1763528042320,3.12,138.83,138.77,5.12909413]
[1763528042516,3.12,138.81,138.79,3.18]
[1763528042924,3.16606325,138.81,138.79,0.04728773]
[1763528043419,3.16606325,138.81,138.79,3.09728773]
[1763528044121,0.04606325,138.81,138.8,9.5388]
[1763528044421,3.07,138.85,138.8,1.94909413]
[1763528044622,3.07,138.85,138.8,4.99909413]
[1763528044827,3.07,138.84,138.8,11.48789413]
[1763528045011,3.07,138.84,138.81,3.05]
[1763528045215,3.07,138.84,138.81,3.10373101]
[1763528045216,3.12492236,138.84,138.81,3.10373101]
[1763528045918,3.12492236,138.84,138.81,9.59213101]
[1763528046320,3.07,138.83,138.81,0.05373101]
[1763528046524,3.07,138.83,138.81,3.10373101]
[1763528046727,9.61192236,138.84,138.81,3.10373101]
[1763528049125,9.5579,138.82,138.81,0.05373101]
[1763528052924,9.61202236,138.84,138.81,0.05373101]
[1763528053230,3.07,138.83,138.81,0.05373101]
[1763528053523,3.07,138.82,138.81,0.05373101]
[1763528054216,3.07,138.82,138.7,101.0078]
[1763528054217,3.07,138.78,138.72,1.94909413]
[1763528054423,3.07,138.78,138.69,3.05]
[1763528054424,3.07,138.77,138.69,4.99909413]
[1763528054620,3.07,138.74,138.69,11.49299413]
[1763528054830,3.07,138.74,138.69,1.94909413]
[1763528055228,3.07,138.71,138.7,0.04878002]
[1763528055934,3.07,138.69,138.65,1.94909413]
[1763528057033,3.07,138.69,138.65,4.99909413]
[1763528057235,0.05090388,138.68,138.66,0.04647501]
[1763528057835,3.12090388,138.68,138.66,0.04647501]
[1763528059237,0.05090388,138.68,138.67,1.94909413]
[1763528060036,0.05090388,138.68,138.66,3.09647501]
[1763528060233,0.05090388,138.68,138.66,0.04647501]
[1763528060738,0.05090388,138.68,138.66,3.09647501]
[1763528061839,0.05090388,138.68,138.67,3.05]
[1763528063636,0.05090388,138.68,138.66,8.49076914]
[1763528064140,3.16090388,138.68,138.66,1.99556914]
[1763528064330,3.16090388,138.68,138.66,0.04647501]
[1763528064732,9.65560388,138.68,138.66,0.04647501]
[1763528064944,3.11,138.67,138.66,0.04647501]
[1763528065332,6.495,138.67,138.62,1.94909413]
[1763528065640,3.11,138.66,138.62,5.17909413]
[1763528066342,3.11,138.66,138.63,0.04610278]
[1763528071745,9.6055,138.66,138.63,0.04610278]
[1763528071944,3.11,138.65,138.63,0.04610278]
[1763528072143,9.6059,138.65,138.63,0.04610278]
[1763528072349,3.11,138.64,138.63,0.04610278]
[1763528073553,0.05390132,138.65,138.63,3.08610278]
[1763528073849,0.05390132,138.65,138.64,4.98909413]
[1763528074043,3.29,138.7,138.64,4.98909413]
[1763528074249,3.29,138.7,138.66,4.98909413]
[1763528074750,3.29,138.7,138.66,11.48439413]
[1763528075048,0.04996236,138.69,138.66,11.48439413]
[1763528075251,0.04996236,138.69,138.67,0.04884342]
[1763528075552,3.33996236,138.69,138.67,0.04884342]
[1763528075853,3.33996236,138.69,138.64,1.94909413]
[1763528076252,3.29,138.66,138.64,1.94909413]
[1763528076751,3.29,138.66,138.64,1.99524159]
[1763528078650,3.33996236,138.69,138.65,3.04]
[1763528078851,3.33996236,138.69,138.66,1.94909413]
[1763528080156,3.33996236,138.69,138.66,11.48429413]
[1763528080350,0.04996236,138.69,138.67,3.04]
[1763528081253,3.33996236,138.69,138.66,1.94909413]
[1763528081954,3.33996236,138.69,138.66,11.48439413]
[1763528082153,3.33996236,138.69,138.68,4.98909413]
[1763528082154,0.04996236,138.69,138.68,4.98909413]
[1763528084456,3.29,138.78,138.71,3.04]
[1763528085058,3.29,138.75,138.66,3.04]
[1763528085259,3.29,138.75,138.68,1.94909413]
[1763528085459,3.29,138.71,138.69,0.05261151]
[1763528085661,3.33601473,138.72,138.69,9.58651151]
[1763528086362,3.33601473,138.72,138.69,0.05261151]
[1763528087262,9.82871473,138.72,138.69,0.05261151]
[1763528087762,3.29,138.71,138.69,0.05261151]
[1763528088461,0.04601473,138.72,138.69,9.58651151]
[1763528089157,3.33601473,138.72,138.69,3.09261151]
[1763528089461,3.33601473,138.72,138.69,0.05261151]
[1763528090066,3.33601473,138.72,138.69,6.54651151]
[1763528090661,3.33601473,138.72,138.69,9.58651151]
[1763528091157,0.04601473,138.72,138.71,3.04]
[1763528091661,3.29,138.78,138.74,3.04]
[1763528092464,3.33793315,138.77,138.75,0.05331394]
[1763528092656,3.33618073,138.77,138.75,0.05331394]
[1763528097168,9.82648073,138.77,138.75,0.05331394]
[1763528097668,3.29,138.76,138.75,0.05331394]
[1763528098673,3.29,138.74,138.7,9.5335]
[1763528099670,0.04654659,138.73,138.71,0.04578413]
[1763528099968,0.04654659,138.73,138.71,9.57868413]
[1763528100665,0.04654659,138.73,138.72,9.5326]
[1763528100969,3.29,138.78,138.73,3.04]
[1763528101168,9.7799,138.78,138.74,3.04]
[1763528101362,3.29,138.77,138.74,3.04]
[1763528101860,3.34182539,138.77,138.74,3.08929094]
[1763528102070,3.29,138.76,138.74,0.04929094]
[1763528102574,9.7812,138.75,138.74,0.04929094]
[1763528105871,104.2454,138.74,138.66,3.23]
[1763528106171,3.26,138.73,138.66,3.23]
[1763528106467,9.7523,138.73,138.67,6.4948]
[1763528106676,9.7523,138.73,138.67,9.7248]
[1763528106974,0.04703469,138.71,138.69,3.28062645]
[1763528109375,3.30703469,138.71,138.69,0.05062645]
[1763528110775,0.04703469,138.71,138.69,0.05062645]
[1763528111077,3.30703469,138.71,138.69,0.05062645]
[1763528112173,9.80013469,138.71,138.69,0.05062645]
[1763528112879,3.30703469,138.71,138.69,0.05062645]
[1763528114582,9.80013469,138.71,138.69,0.05062645]
[1763528114878,3.26,138.7,138.69,0.05062645]
[1763528116483,3.26,138.67,138.63,12.77822061]
[1763528116780,3.26,138.67,138.64,3.23]
[1763528117084,9.755,138.67,138.64,3.23]
[1763528117480,9.80321625,138.67,138.64,3.2792283]
[1763528118380,3.26,138.66,138.64,3.2792283]
[1763528119980,3.26,138.66,138.64,0.0492283]
[1763528120780,3.26,138.66,138.64,3.2792283]
[1763528121083,3.26,138.66,138.64,0.0492283]
[1763528122284,9.7555,138.66,138.64,0.0492283]
[1763528122482,3.26,138.66,138.64,0.0492283]
[1763528123188,3.3,138.64,138.59,6.24152061]
[1763528123680,3.3,138.64,138.59,3.19]
[1763528123985,3.3,138.62,138.59,3.19]
[1763528124173,3.3,138.62,138.57,6.24152061]
[1763528124373,3.34949582,138.62,138.59,0.04567836]
[1763528125177,3.34949582,138.62,138.59,3.23567836]
[1763528125379,0.04949582,138.62,138.61,3.19]
[1763528125682,3.3,138.66,138.61,3.19]
[1763528126082,3.3,138.66,138.62,3.19]
[1763528126785,0.05214223,138.65,138.63,0.05092524]
[1763528127484,3.35214223,138.65,138.63,0.05092524]
[1763528128184,3.3,138.64,138.63,0.05092524]
[1763528130885,3.35214223,138.65,138.63,0.05092524]
[1763528131380,0.05214223,138.65,138.63,3.24092524]
[1763528131977,0.05214223,138.65,138.63,9.73762524]
[1763528135088,0.05214223,138.65,138.64,3.14]
[1763528145183,0.05214223,138.65,138.63,0.05092524]
[1763528145387,0.05214223,138.65,138.63,3.19092524]
[1763528148295,0.05214223,138.65,138.63,9.68772524]
[1763528148896,0.05214223,138.65,138.64,3.14]
[1763528151399,3.09214223,138.65,138.63,3.19092524]
[1763528151705,0.05214223,138.65,138.63,3.19092524]
[1763528152192,3.09214223,138.65,138.63,0.05092524]
[1763528152999,9.5363,138.64,138.63,0.05092524]
[1763528153301,3.04,138.64,138.63,0.05092524]
[1763528156203,9.5363,138.64,138.63,0.05092524]
[1763528159102,3.04,138.64,138.63,0.05092524]
[1763528160004,0.05214223,138.65,138.63,3.19092524]
[1763528160200,0.05214223,138.65,138.64,3.14]
[1763528160400,0.05214223,138.65,138.64,9.6363]
[1763528163804,3.04,138.69,138.66,6.4951]
[1763528164103,3.04,138.69,138.66,9.5751]
[1763528164516,3.04,138.69,138.65,3.08]
[1763528164818,3.29423111,138.68,138.66,0.0498864]
[1763528165011,3.28592644,138.68,138.66,0.0498864]
[1763528166617,3.24,138.67,138.66,0.0498864]
[1763528166811,3.24,138.67,138.6,3.08]
[1763528167716,3.29311038,138.65,138.62,0.04565172]
[1763528168015,3.24,138.64,138.62,0.04565172]
[1763528169913,3.29311038,138.65,138.62,3.12565172]
[1763528170122,0.05311038,138.65,138.62,3.12565172]
[1763528170418,0.05311038,138.65,138.63,9.5768]
[1763528170617,0.05311038,138.65,138.64,3.08]
[1763528171213,0.05311038,138.65,138.63,3.08]
[1763528172915,3.29311038,138.65,138.62,6.54295172]
[1763528173118,3.29311038,138.65,138.62,0.04565172]
[1763528173616,3.24,138.63,138.62,0.04565172]
[1763528175820,9.7368,138.63,138.62,0.04565172]
[1763528177214,3.24,138.63,138.62,0.04565172]
[1763528177420,3.29311038,138.65,138.62,3.12565172]
[1763528177816,9.78901038,138.65,138.62,3.12565172]
[1763528181026,3.24,138.64,138.62,0.04565172]
[1763528181728,3.24,138.64,138.56,5.0341253]
[1763528182023,6.4978,138.61,138.56,5.0341253]
[1763528182222,3.24,138.6,138.56,5.0341253]
[1763528182515,3.24,138.6,138.56,3.08]
[1763528182722,3.17193744,138.59,138.57,0.05448444]
[1763528182914,3.16992124,138.59,138.57,0.05448444]
[1763528184014,0.04992124,138.59,138.57,3.03448444]
[1763528184218,0.04992124,138.59,138.58,4.9341253]
[1763528184416,3.12,138.66,138.59,2.98]
[1763528185023,3.12,138.65,138.6,9.4781]
[1763528185415,9.6168,138.63,138.61,0.0456202]
[1763528186126,3.12,138.63,138.61,0.0456202]
[1763528194231,3.09519909,138.64,138.61,3.1956202]
[1763528194937,3.09519909,138.64,138.61,9.6929202]
[1763528197240,3.09519909,138.64,138.61,3.1956202]
[1763528197634,0.05519909,138.64,138.61,5.1497455]
[1763528197937,0.05519909,138.64,138.63,9.6468]
[1763528198234,3.04,138.68,138.63,3.15]
[1763528198435,3.04,138.68,138.64,3.15]
[1763528198933,3.04,138.67,138.64,3.15]
[1763528199333,3.09337457,138.67,138.64,3.20318343]
[1763528200539,3.04,138.66,138.64,0.05318343]
[1763528202733,3.04,138.62,138.55,5.1041253]
[1763528203639,3.0866444,138.6,138.57,3.20528866]
[1763528203840,0.0466444,138.6,138.57,5.15941396]
[1763528204441,0.0466444,138.6,138.58,9.6491]
[1763528206244,0.0466444,138.6,138.59,3.15]
[1763528206436,0.0466444,138.6,138.59,5.1041253]
[1763528207850,3.0866444,138.6,138.58,6.4991]
[1763528208946,0.0466444,138.6,138.58,9.6491]
[1763528210045,0.0466444,138.6,138.59,3.15]
[1763528210937,3.04,138.64,138.61,9.6475]
[1763528211750,3.04,138.64,138.62,3.15]
[1763528212042,3.08817536,138.64,138.62,3.20235619]
[1763528213543,0.04817536,138.64,138.62,3.20235619]
[1763528214846,0.04817536,138.64,138.63,6.4968]
[1763528215045,0.04817536,138.64,138.63,9.6468]
[1763528216746,0.04817536,138.64,138.63,3.15]
[1763528217849,0.04817536,138.64,138.63,9.6468]
[1763528218049,9.5339,138.7,138.64,3.15]
[1763528218240,3.04,138.7,138.64,3.15]
[1763528218953,6.494,138.69,138.64,3.15]
[1763528219152,3.09302378,138.68,138.65,3.20366014]
[1763528220245,0.05302378,138.68,138.65,3.20366014]
[1763528220951,0.05302378,138.68,138.67,9.6449]
[1763528221246,0.05302378,138.68,138.66,3.15]
[1763528222450,0.05302378,138.68,138.67,3.15]
[1763528224549,3.16302378,138.68,138.65,3.26366014]
[1763528224742,3.16302378,138.68,138.65,0.05366014]
[1763528225747,6.495,138.67,138.65,0.05366014]
[1763528225953,3.16302378,138.68,138.65,0.05366014]
[1763528226345,9.65762378,138.68,138.65,0.05366014]
[1763528226650,3.11,138.67,138.65,0.05366014]
[1763528230446,9.605,138.67,138.65,0.05366014]
[1763528230647,3.11,138.66,138.65,0.05366014]
[1763528231957,9.6054,138.66,138.65,0.05366014]
[1763528232254,0.05302378,138.68,138.6,3.21]
[1763528232255,3.11,138.65,138.6,3.21]
[1763528232448,3.11,138.65,138.57,3.21]
[1763528232648,3.11,138.64,138.56,6.26551869]
[1763528233152,3.11,138.61,138.58,9.7091]
[1763528233353,3.15912739,138.62,138.6,0.04872443]
[1763528233554,3.16263311,138.62,138.6,0.04872443]
[1763528234553,0.05263311,138.62,138.6,9.75682443]
[1763528236256,3.16263311,138.62,138.6,0.04872443]
[1763528236761,9.65993311,138.62,138.6,0.04872443]
[1763528237460,3.11,138.61,138.6,0.04872443]
[1763528237655,3.11,138.59,138.54,3.21]
[1763528238654,3.16538352,138.58,138.55,0.04906868]
[1763528239460,3.16538352,138.58,138.5,3.21]
[1763528239861,6.5009,138.56,138.51,6.503]
[1763528240165,3.11,138.59,138.52,3.21]
[1763528240567,0.04696994,138.57,138.53,9.712]
[1763528240764,3.15696994,138.57,138.54,0.05446404]
[1763528241064,3.15696994,138.57,138.54,3.26446404]
[1763528241458,3.15696994,138.57,138.54,0.05446404]
[1763528241761,9.6109,138.56,138.54,0.05446404]
[1763528241971,3.11,138.55,138.54,0.05446404]
[1763528243260,0.04696994,138.57,138.54,3.10446404]
[1763528244171,3.13696994,138.57,138.54,3.10446404]
[1763528244772,0.04696994,138.57,138.54,3.10446404]
[1763528246064,0.04696994,138.57,138.54,9.60596404]
[1763528246368,0.04696994,138.57,138.55,3.05]
[1763528247168,0.04696994,138.57,138.55,9.551]
[1763528248762,0.04696994,138.57,138.56,3.05]
[1763528249062,0.04696994,138.57,138.55,9.551]
[1763528249367,3.13696994,138.57,138.54,0.05446404]
[1763528249558,3.13696994,138.57,138.54,3.10446404]
[1763528249754,0.04696994,138.57,138.54,3.10446404]
[1763528250061,0.04696994,138.57,138.54,9.60606404]
[1763528250260,0.04696994,138.57,138.55,3.05]
[1763528251160,3.13696994,138.57,138.54,9.60606404]
[1763528251361,3.13696994,138.57,138.54,3.10446404]
[1763528252167,0.04696994,138.57,138.54,3.10446404]
[1763528253869,0.04696994,138.57,138.55,6.501]
[1763528254266,0.04696994,138.57,138.55,9.701]
[1763528255977,0.04696994,138.57,138.56,3.2]
[1763528256772,0.04696994,138.57,138.55,9.701]
[1763528258175,0.04696994,138.57,138.56,3.2]
[1763528259179,3.18,138.62,138.59,3.2]
[1763528259374,3.18,138.65,138.59,3.2]
[1763528260079,3.18,138.63,138.6,9.6988]
[1763528260377,3.22710914,138.63,138.61,3.2]
[1763528260578,3.22710914,138.63,138.6,3.25371045]
[1763528263381,3.22710914,138.63,138.6,9.75251045]
[1763528263982,0.04710914,138.63,138.61,9.6984]
[1763528264676,0.04710914,138.63,138.62,3.2]
[1763528264983,0.04710914,138.63,138.62,9.6979]
[1763528265373,0.04710914,138.63,138.62,3.2]
[1763528267873,0.04710914,138.63,138.6,3.25371045]
[1763528267874,3.22710914,138.63,138.6,3.25371045]
[1763528268079,3.22710914,138.63,138.6,0.05371045]
[1763528268982,3.22710914,138.63,138.6,9.75251045]
[1763528269184,3.22710914,138.63,138.6,6.55251045]
[1763528269382,3.22710914,138.63,138.6,3.25371045]
[1763528270279,3.22710914,138.63,138.61,3.2]
[1763528270484,0.04710914,138.63,138.61,3.2]
[1763528271786,0.04710914,138.63,138.61,9.6983]
[1763528271973,0.04710914,138.63,138.61,3.2]
[1763528273584,0.04710914,138.63,138.61,9.6983]
[1763528273786,0.04710914,138.63,138.62,3.2]
[1763528274385,9.6755,138.68,138.63,3.2]
[1763528274687,3.18,138.68,138.63,3.2]